[Event "Titled Tuesday Blitz November 2 2021"]
[White "Mezentsev, Ivan"]
[Black "De Silva, L M S T"]
[WhiteFideId "13706195"]
[BlackFideId "9953698"]
[WhiteElo "2295"]
[BlackElo "1621"]
[Result "1-0"]
[Round "09"]
[TimeControl "180+1"]
[Date "2021.11.02"]
[WhiteClock "0:00:27"]
[BlackClock "0:00:19"]

1. d4 {[%clk 0:02:54]}  Nf6 {[%clk 0:03:00]} 2. Nf3 {[%clk 0:02:53]}  e6 {[%clk 0:03:00]} 3. Bf4 {[%clk 0:02:54]}  d5 {[%clk 0:03:00]} 4. e3 {[%clk 0:02:54]}  Bd6 {[%clk 0:03:00]} 5. Bg3 {[%clk 0:02:54]}  O-O {[%clk 0:03:01]} 6. Nbd2 {[%clk 0:02:54]}  c5 {[%clk 0:03:01]} 7. c3 {[%clk 0:02:54]}  Nc6 {[%clk 0:03:02]} 8. Bd3 {[%clk 0:02:54]}  b6 {[%clk 0:03:02]} 9. e4 {[%clk 0:02:52]}  Be7 {[%clk 0:03:03]} 10. e5 {[%clk 0:02:47]}  Nh5 {[%clk 0:03:03]} 11. a3 {[%clk 0:02:37]}  g6 {[%clk 0:03:02]} 12. Qe2 {[%clk 0:02:27]}  cxd4 {[%clk 0:03:00]} 13. cxd4 {[%clk 0:02:27]}  Bd7 {[%clk 0:02:57]} 14. Nf1 {[%clk 0:02:22]}  Na5 {[%clk 0:02:55]} 15. Ne3 {[%clk 0:02:20]}  Rc8 {[%clk 0:02:50]} 16. O-O {[%clk 0:02:15]}  Bg5 {[%clk 0:02:37]} 17. h3 {[%clk 0:02:11]}  Bxe3 {[%clk 0:02:35]} 18. Qxe3 {[%clk 0:02:10]}  Nxg3 {[%clk 0:02:02]} 19. fxg3 {[%clk 0:02:08]}  f5 {[%clk 0:02:01]} 20. exf6 {[%clk 0:02:04]}  Qxf6 {[%clk 0:02:00]} 21. Ne5 {[%clk 0:01:59]}  Qe7 {[%clk 0:02:00]} 22. Rxf8+ {[%clk 0:01:20]}  Rxf8 {[%clk 0:01:58]} 23. Bxg6 {[%clk 0:01:20]}  hxg6 {[%clk 0:01:58]} 24. Nxg6 {[%clk 0:01:19]}  Qg7 {[%clk 0:01:54]} 25. Nxf8 {[%clk 0:01:19]}  Kxf8 {[%clk 0:01:54]} 26. Rf1+ {[%clk 0:01:17]}  Ke8 {[%clk 0:01:54]} 27. Rf4 {[%clk 0:01:16]}  Nc4 {[%clk 0:01:54]} 28. Qc3 {[%clk 0:01:11]}  Nd6 {[%clk 0:01:42]} 29. Qc7 {[%clk 0:01:04]}  Ne4 {[%clk 0:01:37]} 30. Rg4 {[%clk 0:01:01]}  Qxd4+ {[%clk 0:01:36]} 31. Kh2 {[%clk 0:01:01]}  Qf6 {[%clk 0:01:12]} 32. Rg8+ {[%clk 0:00:51]}  Kf7 {[%clk 0:01:06]} 33. Rd8 {[%clk 0:00:50]}  Nc5 {[%clk 0:01:00]} 34. b4 {[%clk 0:00:49]}  Qe7 {[%clk 0:00:33]} 35. bxc5 {[%clk 0:00:45]}  Ba4 {[%clk 0:00:34]} 36. Qf4+ {[%clk 0:00:44]}  Kg7 {[%clk 0:00:33]} 37. Rc8 {[%clk 0:00:40]}  bxc5 {[%clk 0:00:24]} 38. Rc7 {[%clk 0:00:40]}  Bd7 {[%clk 0:00:23]} 39. Qe5+ {[%clk 0:00:38]}  Kf7 {[%clk 0:00:24]} 40. Rxa7 {[%clk 0:00:37]}  d4 {[%clk 0:00:21]} 41. Qf4+ {[%clk 0:00:37]}  Kg7 {[%clk 0:00:17]} 42. Qc7 {[%clk 0:00:37]}  Kf6 {[%clk 0:00:16]} 43. Qxd7 {[%clk 0:00:35]}  Qxd7 {[%clk 0:00:17]} 44. Rxd7 {[%clk 0:00:35]}  e5 {[%clk 0:00:18]} 45. a4 {[%clk 0:00:35]}  e4 {[%clk 0:00:18]} 46. a5 {[%clk 0:00:35]}  e3 {[%clk 0:00:19]} 47. a6 {[%clk 0:00:34]}  e2 {[%clk 0:00:20]} 48. a7 {[%clk 0:00:35]}  e1=Q {[%clk 0:00:21]} 49. a8=Q {[%clk 0:00:35]}  Qe6 {[%clk 0:00:22]} 50. Qf8+ {[%clk 0:00:33]}  Ke5 {[%clk 0:00:21]} 51. Qxc5+ {[%clk 0:00:33]}  Kf6 {[%clk 0:00:20]} 52. Qxd4+ {[%clk 0:00:33]}  Kg6 {[%clk 0:00:21]} 53. Rd6 {[%clk 0:00:29]}  Kh5 {[%clk 0:00:19]} 54. Rxe6 {[%clk 0:00:27]} 1-0


[Site "https://www.chess.com"]

[Event "Titled Tuesday Blitz November 2 2021"]
[White "Postny, Evgeny"]
[Black "Jobava, Baadur"]
[WhiteFideId "2804344"]
[BlackFideId "13601520"]
[WhiteElo "2521"]
[BlackElo "2731"]
[Result "1/2-1/2"]
[Round "09"]
[TimeControl "180+1"]
[Date "2021.11.02"]
[WhiteClock "0:00:02"]
[BlackClock "0:00:06"]

1. Nf3 {[%clk 0:02:55]}  Nf6 {[%clk 0:03:00]} 2. c4 {[%clk 0:02:54]}  g6 {[%clk 0:03:00]} 3. g3 {[%clk 0:02:55]}  Bg7 {[%clk 0:02:57]} 4. Bg2 {[%clk 0:02:55]}  O-O {[%clk 0:02:56]} 5. O-O {[%clk 0:02:56]}  d6 {[%clk 0:02:56]} 6. d4 {[%clk 0:02:56]}  Nc6 {[%clk 0:02:56]} 7. b3 {[%clk 0:02:56]}  e5 {[%clk 0:02:55]} 8. Bb2 {[%clk 0:02:55]}  e4 {[%clk 0:02:48]} 9. Ne1 {[%clk 0:02:55]}  Re8 {[%clk 0:02:42]} 10. Nc2 {[%clk 0:02:52]}  h5 {[%clk 0:02:41]} 11. Nc3 {[%clk 0:02:49]}  h4 {[%clk 0:02:36]} 12. b4 {[%clk 0:02:46]}  Bg4 {[%clk 0:02:13]} 13. b5 {[%clk 0:02:37]}  Ne7 {[%clk 0:02:02]} 14. Nxe4 {[%clk 0:02:33]}  Nxe4 {[%clk 0:02:01]} 15. Bxe4 {[%clk 0:02:34]}  Nf5 {[%clk 0:02:01]} 16. Bf3 {[%clk 0:02:25]}  Qg5 {[%clk 0:01:31]} 17. Qc1 {[%clk 0:02:01]}  Qh5 {[%clk 0:01:27]} 18. Qf4 {[%clk 0:01:16]}  hxg3 {[%clk 0:01:26]} 19. hxg3 {[%clk 0:01:12]}  Bxf3 {[%clk 0:01:24]} 20. Qxf3 {[%clk 0:01:11]}  Rxe2 {[%clk 0:01:22]} 21. g4 {[%clk 0:01:05]}  Rxc2 {[%clk 0:00:33]} 22. gxh5 {[%clk 0:01:04]}  Rxb2 {[%clk 0:00:34]} 23. hxg6 {[%clk 0:01:03]}  fxg6 {[%clk 0:00:35]} 24. Qxb7 {[%clk 0:01:02]}  Rf8 {[%clk 0:00:35]} 25. Qd5+ {[%clk 0:00:57]}  Kh7 {[%clk 0:00:33]} 26. Rae1 {[%clk 0:00:39]}  Bxd4 {[%clk 0:00:30]} 27. Re4 {[%clk 0:00:32]}  Bb6 {[%clk 0:00:27]} 28. Kg2 {[%clk 0:00:27]}  Kg7 {[%clk 0:00:26]} 29. Qd3 {[%clk 0:00:13]}  Rxa2 {[%clk 0:00:23]} 30. Qc3+ {[%clk 0:00:13]}  Rf6 {[%clk 0:00:12]} 31. Re8 {[%clk 0:00:07]}  Bd4 {[%clk 0:00:11]} 32. Qh3 {[%clk 0:00:05]}  Kf7 {[%clk 0:00:09]} 33. Qh8 {[%clk 0:00:04]}  Nh4+ {[%clk 0:00:08]} 34. Qxh4 {[%clk 0:00:04]}  Rfxf2+ {[%clk 0:00:08]} 35. Rxf2+ {[%clk 0:00:04]}  Rxf2+ {[%clk 0:00:08]} 36. Kg3 {[%clk 0:00:03]}  Kxe8 {[%clk 0:00:07]} 37. Qxd4 {[%clk 0:00:03]}  Rf5 {[%clk 0:00:08]} 38. Qxa7 {[%clk 0:00:02]}  Rc5 {[%clk 0:00:09]} 39. Qa8+ {[%clk 0:00:02]}  Kd7 {[%clk 0:00:09]} 40. Qe4 {[%clk 0:00:03]}  g5 {[%clk 0:00:10]} 41. Qg4+ {[%clk 0:00:03]}  Kd8 {[%clk 0:00:10]} 42. Kf3 {[%clk 0:00:03]}  Re5 {[%clk 0:00:08]} 43. Qd4 {[%clk 0:00:03]}  Kc8 {[%clk 0:00:08]} 44. Kg4 {[%clk 0:00:04]}  Rc5 {[%clk 0:00:08]} 45. Kh5 {[%clk 0:00:04]}  Kb7 {[%clk 0:00:08]} 46. Kg6 {[%clk 0:00:03]}  Kb6 {[%clk 0:00:07]} 47. Kf6 {[%clk 0:00:04]}  Ka5 {[%clk 0:00:08]} 48. Qc3+ {[%clk 0:00:03]}  Ka4 {[%clk 0:00:08]} 49. Ke6 {[%clk 0:00:03]}  g4 {[%clk 0:00:08]} 50. Kd7 {[%clk 0:00:03]}  g3 {[%clk 0:00:09]} 51. Qxg3 {[%clk 0:00:02]}  Rxc4 {[%clk 0:00:09]} 52. Qg5 {[%clk 0:00:02]}  Rc5 {[%clk 0:00:08]} 53. Qf4+ {[%clk 0:00:01]}  Kxb5 {[%clk 0:00:09]} 54. Qd4 {[%clk 0:00:02]}  d5 {[%clk 0:00:08]} 55. Ke6 {[%clk 0:00:02]}  c6 {[%clk 0:00:08]} 56. Kd6 {[%clk 0:00:01]}  Rc4 {[%clk 0:00:09]} 57. Qb2+ {[%clk 0:00:02]}  Ka4 {[%clk 0:00:09]} 58. Qb6 {[%clk 0:00:02]}  d4 {[%clk 0:00:08]} 59. Ke5 {[%clk 0:00:02]}  c5 {[%clk 0:00:07]} 60. Qb2 {[%clk 0:00:01]}  Rc3 {[%clk 0:00:07]} 61. Qa1+ {[%clk 0:00:01]}  Kb3 {[%clk 0:00:08]} 62. Qb1+ {[%clk 0:00:02]}  Kc4 {[%clk 0:00:07]} 63. Qa2+ {[%clk 0:00:02]}  Kd3 {[%clk 0:00:07]} 64. Qa6+ {[%clk 0:00:02]}  Kd2 {[%clk 0:00:06]} 65. Qa2+ {[%clk 0:00:02]}  Rc2 {[%clk 0:00:06]} 66. Qa3 {[%clk 0:00:02]}  d3 {[%clk 0:00:06]} 67. Ke4 {[%clk 0:00:03]}  c4 {[%clk 0:00:06]} 68. Qa5+ {[%clk 0:00:02]}  Kd1 {[%clk 0:00:06]} 69. Qh5+ {[%clk 0:00:02]}  Kc1 {[%clk 0:00:06]} 70. Qh1+ {[%clk 0:00:02]}  Kb2 {[%clk 0:00:06]} 71. Qh8+ {[%clk 0:00:02]}  c3 {[%clk 0:00:06]} 72. Qb8+ {[%clk 0:00:02]}  Kc1 {[%clk 0:00:05]} 73. Kxd3 {[%clk 0:00:02]}  Rd2+ {[%clk 0:00:06]} 74. Kxc3 {[%clk 0:00:02]}  Rc2+ {[%clk 0:00:06]} 75. Kd3 {[%clk 0:00:03]}  Rd2+ {[%clk 0:00:07]} 76. Ke3 {[%clk 0:00:03]}  Rb2 {[%clk 0:00:08]} 77. Qc7+ {[%clk 0:00:03]}  Kd1 {[%clk 0:00:08]} 78. Qc4 {[%clk 0:00:02]}  Rd2 {[%clk 0:00:07]} 79. Qf1+ {[%clk 0:00:01]}  Kc2 {[%clk 0:00:07]} 80. Qc4+ {[%clk 0:00:02]}  Kd1 {[%clk 0:00:08]} 81. Kf3 {[%clk 0:00:02]}  Rc2 {[%clk 0:00:06]} 82. Qb3 {[%clk 0:00:02]}  Kd2 {[%clk 0:00:06]} 83. Qe3+ {[%clk 0:00:02]}  Kd1 {[%clk 0:00:06]} 84. Qd4+ {[%clk 0:00:03]}  Kc1 {[%clk 0:00:06]} 85. Qa1+ {[%clk 0:00:02]}  Kd2 {[%clk 0:00:06]} 86. Kf2 {[%clk 0:00:03]}  Kd3+ {[%clk 0:00:06]} 87. Kf3 {[%clk 0:00:03]}  Kd2 {[%clk 0:00:06]} 88. Qd4+ {[%clk 0:00:03]}  Kc1 {[%clk 0:00:06]} 89. Qb4 {[%clk 0:00:03]}  Rb2 {[%clk 0:00:06]} 90. Qc3+ {[%clk 0:00:02]}  Rc2 {[%clk 0:00:06]} 91. Qa1+ {[%clk 0:00:02]}  Kd2 {[%clk 0:00:06]} 1/2-1/2


[Site "https://www.chess.com"]

[Event "Titled Tuesday Blitz November 2 2021"]
[White "Przybylski, Wojciech"]
[Black "Narayanan.S.L"]
[WhiteFideId "1117599"]
[BlackFideId "5058422"]
[WhiteElo "2247"]
[BlackElo "2570"]
[Result "0-1"]
[Round "09"]
[TimeControl "180+1"]
[Date "2021.11.02"]
[WhiteClock "0:00:12"]
[BlackClock "0:02:12"]

1. e4 {[%clk 0:03:00]}  g6 {[%clk 0:03:00]} 2. d4 {[%clk 0:03:00]}  Bg7 {[%clk 0:03:00]} 3. Nc3 {[%clk 0:03:00]}  a6 {[%clk 0:03:01]} 4. Nf3 {[%clk 0:03:00]}  b5 {[%clk 0:03:01]} 5. a3 {[%clk 0:02:59]}  Bb7 {[%clk 0:03:02]} 6. Bd3 {[%clk 0:02:59]}  d6 {[%clk 0:03:02]} 7. O-O {[%clk 0:02:57]}  Nd7 {[%clk 0:03:03]} 8. Re1 {[%clk 0:02:55]}  c5 {[%clk 0:03:03]} 9. d5 {[%clk 0:02:32]}  Ngf6 {[%clk 0:03:02]} 10. h3 {[%clk 0:02:26]}  O-O {[%clk 0:03:03]} 11. Bg5 {[%clk 0:02:25]}  Re8 {[%clk 0:02:58]} 12. Qd2 {[%clk 0:02:23]}  Qb6 {[%clk 0:02:54]} 13. Kh2 {[%clk 0:02:11]}  e6 {[%clk 0:02:54]} 14. dxe6 {[%clk 0:02:09]}  Rxe6 {[%clk 0:02:55]} 15. Nd5 {[%clk 0:01:12]}  Nxd5 {[%clk 0:02:43]} 16. exd5 {[%clk 0:01:13]}  Rxe1 {[%clk 0:02:43]} 17. Rxe1 {[%clk 0:01:12]}  Bxd5 {[%clk 0:02:44]} 18. Bxb5 {[%clk 0:01:11]}  Bxf3 {[%clk 0:02:33]} 19. Bxd7 {[%clk 0:01:10]}  Bb7 {[%clk 0:02:30]} 20. c3 {[%clk 0:01:07]}  d5 {[%clk 0:02:29]} 21. Ba4 {[%clk 0:00:48]}  d4 {[%clk 0:02:29]} 22. c4 {[%clk 0:00:42]}  h5 {[%clk 0:02:27]} 23. b4 {[%clk 0:00:41]}  cxb4 {[%clk 0:02:24]} 24. axb4 {[%clk 0:00:42]}  Qc7+ {[%clk 0:02:24]} 25. Qf4 {[%clk 0:00:38]}  Qxc4 {[%clk 0:02:24]} 26. Re8+ {[%clk 0:00:36]}  Rxe8 {[%clk 0:02:23]} 27. Bxe8 {[%clk 0:00:37]}  Qd5 {[%clk 0:02:12]} 28. Qg3 {[%clk 0:00:24]}  d3 {[%clk 0:02:12]} 29. Bd2 {[%clk 0:00:15]}  h4 {[%clk 0:02:12]} 30. Qg4 {[%clk 0:00:14]}  Qe5+ {[%clk 0:02:13]} 31. f4 {[%clk 0:00:13]}  Qxe8 {[%clk 0:02:13]} 32. Qxh4 {[%clk 0:00:12]}  Qe2 {[%clk 0:02:12]} 0-1


[Site "https://www.chess.com"]

[Event "Titled Tuesday Blitz November 2 2021"]
[White "Rychagov, Andrey"]
[Black "Yeletsky, Ivan"]
[WhiteFideId "4119932"]
[BlackFideId "24180327"]
[WhiteElo "2500"]
[BlackElo "2352"]
[Result "0-1"]
[Round "09"]
[TimeControl "180+1"]
[Date "2021.11.02"]
[WhiteClock "0:00:22"]
[BlackClock "0:00:20"]

1. d4 {[%clk 0:02:32]}  Nf6 {[%clk 0:02:33]} 2. c4 {[%clk 0:02:32]}  g6 {[%clk 0:02:34]} 3. Nf3 {[%clk 0:02:31]}  Bg7 {[%clk 0:02:34]} 4. Nc3 {[%clk 0:02:32]}  O-O {[%clk 0:02:34]} 5. e4 {[%clk 0:02:32]}  d6 {[%clk 0:02:34]} 6. Be2 {[%clk 0:02:32]}  e5 {[%clk 0:02:34]} 7. O-O {[%clk 0:02:32]}  Na6 {[%clk 0:02:33]} 8. Re1 {[%clk 0:02:29]}  Qe7 {[%clk 0:02:29]} 9. d5 {[%clk 0:02:28]}  Nc5 {[%clk 0:02:24]} 10. Bg5 {[%clk 0:02:27]}  a5 {[%clk 0:02:18]} 11. Nd2 {[%clk 0:02:26]}  h6 {[%clk 0:02:03]} 12. Bh4 {[%clk 0:02:25]}  Bd7 {[%clk 0:01:56]} 13. b3 {[%clk 0:02:23]}  h5 {[%clk 0:01:46]} 14. a3 {[%clk 0:02:19]}  Bh6 {[%clk 0:01:46]} 15. Nf3 {[%clk 0:02:06]}  Bg4 {[%clk 0:01:14]} 16. h3 {[%clk 0:02:03]}  Bxf3 {[%clk 0:01:10]} 17. Bxf3 {[%clk 0:02:03]}  Kh7 {[%clk 0:00:51]} 18. Nb5 {[%clk 0:01:48]}  Rg8 {[%clk 0:00:50]} 19. Bxf6 {[%clk 0:01:38]}  Qxf6 {[%clk 0:00:50]} 20. Nxc7 {[%clk 0:01:38]}  Rac8 {[%clk 0:00:40]} 21. Nb5 {[%clk 0:01:38]}  a4 {[%clk 0:00:41]} 22. b4 {[%clk 0:01:35]}  Nb3 {[%clk 0:00:40]} 23. Ra2 {[%clk 0:01:36]}  Rxc4 {[%clk 0:00:39]} 24. Rc2 {[%clk 0:01:31]}  Rgc8 {[%clk 0:00:36]} 25. Rxc4 {[%clk 0:01:24]}  Rxc4 {[%clk 0:00:37]} 26. Qd3 {[%clk 0:01:24]}  Rc8 {[%clk 0:00:30]} 27. Bd1 {[%clk 0:01:11]}  Rc1 {[%clk 0:00:30]} 28. Kf1 {[%clk 0:01:05]}  Bd2 {[%clk 0:00:25]} 29. Ke2 {[%clk 0:00:47]}  Bxe1 {[%clk 0:00:26]} 30. Kxe1 {[%clk 0:00:48]}  Nd4 {[%clk 0:00:19]} 31. Nxd4 {[%clk 0:00:37]}  exd4 {[%clk 0:00:20]} 32. Ke2 {[%clk 0:00:38]}  Rc3 {[%clk 0:00:19]} 33. Qd2 {[%clk 0:00:27]}  Rxa3 {[%clk 0:00:20]} 34. Bc2 {[%clk 0:00:25]}  Ra2 {[%clk 0:00:20]} 35. Qd3 {[%clk 0:00:22]}  Qf4 {[%clk 0:00:20]} 0-1


[Site "https://www.chess.com"]

[Event "Titled Tuesday Blitz November 2 2021"]
[White "Srebrnic, Marko"]
[Black "Kaasen, Tor Fredrik"]
[WhiteFideId "14603616"]
[BlackFideId "1516647"]
[WhiteElo "2340"]
[BlackElo "2349"]
[Result "0-1"]
[Round "09"]
[TimeControl "180+1"]
[Date "2021.11.02"]
[WhiteClock "0:00:56"]
[BlackClock "0:01:59"]

1. e4 {[%clk 0:03:00]}  c5 {[%clk 0:02:59]} 2. Nf3 {[%clk 0:02:58]}  d6 {[%clk 0:03:00]} 3. Bb5+ {[%clk 0:02:58]}  Nd7 {[%clk 0:02:58]} 4. O-O {[%clk 0:02:58]}  a6 {[%clk 0:02:57]} 5. Bd3 {[%clk 0:02:55]}  Ngf6 {[%clk 0:02:57]} 6. c3 {[%clk 0:02:56]}  e6 {[%clk 0:02:55]} 7. Bc2 {[%clk 0:02:56]}  b5 {[%clk 0:02:53]} 8. d4 {[%clk 0:02:56]}  Bb7 {[%clk 0:02:53]} 9. Re1 {[%clk 0:02:56]}  Be7 {[%clk 0:02:51]} 10. a4 {[%clk 0:02:33]}  O-O {[%clk 0:02:50]} 11. Nbd2 {[%clk 0:02:33]}  Qc7 {[%clk 0:02:48]} 12. Qe2 {[%clk 0:02:32]}  cxd4 {[%clk 0:02:47]} 13. Nxd4 {[%clk 0:02:29]}  bxa4 {[%clk 0:02:45]} 14. Bxa4 {[%clk 0:02:23]}  d5 {[%clk 0:02:41]} 15. e5 {[%clk 0:02:16]}  Ne4 {[%clk 0:02:38]} 16. f4 {[%clk 0:02:12]}  Ndc5 {[%clk 0:02:29]} 17. Bc2 {[%clk 0:02:08]}  a5 {[%clk 0:02:26]} 18. N2f3 {[%clk 0:02:03]}  g6 {[%clk 0:02:19]} 19. f5 {[%clk 0:01:56]}  exf5 {[%clk 0:02:16]} 20. Bh6 {[%clk 0:01:55]}  Rfe8 {[%clk 0:02:16]} 21. b4 {[%clk 0:01:25]}  axb4 {[%clk 0:02:09]} 22. cxb4 {[%clk 0:01:26]}  Ne6 {[%clk 0:02:08]} 23. Kh1 {[%clk 0:01:19]}  Bxb4 {[%clk 0:02:05]} 24. Rec1 {[%clk 0:01:17]}  Rxa1 {[%clk 0:02:05]} 25. Rxa1 {[%clk 0:01:15]}  Nxd4 {[%clk 0:02:05]} 26. Nxd4 {[%clk 0:01:15]}  Qxe5 {[%clk 0:01:57]} 27. Be3 {[%clk 0:01:05]}  Bc3 {[%clk 0:01:58]} 28. Rd1 {[%clk 0:01:01]}  Bxd4 {[%clk 0:01:58]} 29. Rxd4 {[%clk 0:01:00]}  Qxd4 {[%clk 0:01:58]} 30. Bxd4 {[%clk 0:00:59]}  Ng3+ {[%clk 0:01:59]} 31. hxg3 {[%clk 0:00:59]}  Rxe2 {[%clk 0:02:00]} 32. Ba4 {[%clk 0:00:57]}  Rd2 {[%clk 0:01:59]} 33. Bf6 {[%clk 0:00:56]}  d4 {[%clk 0:01:59]} 0-1


[Site "https://www.chess.com"]

[Event "Titled Tuesday Blitz November 2 2021"]
[White "Sychev, Klementy"]
[Black "Provotorov, Ivan"]
[WhiteFideId "4114060"]
[BlackFideId "4154657"]
[WhiteElo "2615"]
[BlackElo "2291"]
[Result "1-0"]
[Round "09"]
[TimeControl "180+1"]
[Date "2021.11.02"]
[WhiteClock "0:00:08"]
[BlackClock "0:00:06"]

1. b3 {[%clk 0:03:00]}  a5 {[%clk 0:02:51]} 2. e4 {[%clk 0:02:59]}  e6 {[%clk 0:02:47]} 3. Bb2 {[%clk 0:02:59]}  a4 {[%clk 0:02:46]} 4. Nf3 {[%clk 0:02:58]}  a3 {[%clk 0:02:47]} 5. Bc3 {[%clk 0:02:57]}  Nf6 {[%clk 0:02:45]} 6. d3 {[%clk 0:02:52]}  d5 {[%clk 0:02:44]} 7. Qe2 {[%clk 0:02:45]}  Nc6 {[%clk 0:02:40]} 8. g3 {[%clk 0:02:42]}  d4 {[%clk 0:02:31]} 9. Bd2 {[%clk 0:02:39]}  Nb4 {[%clk 0:02:22]} 10. Bc1 {[%clk 0:02:30]}  Be7 {[%clk 0:02:05]} 11. Bg2 {[%clk 0:02:28]}  O-O {[%clk 0:01:40]} 12. Nxa3 {[%clk 0:02:23]}  Nxd3+ {[%clk 0:01:27]} 13. cxd3 {[%clk 0:02:17]}  Bb4+ {[%clk 0:01:23]} 14. Kf1 {[%clk 0:02:11]}  Bxa3 {[%clk 0:01:22]} 15. Bxa3 {[%clk 0:02:12]}  Rxa3 {[%clk 0:01:23]} 16. Qb2 {[%clk 0:02:12]}  Ra6 {[%clk 0:01:19]} 17. b4 {[%clk 0:02:06]}  Rb6 {[%clk 0:01:08]} 18. Rc1 {[%clk 0:01:59]}  Qd7 {[%clk 0:00:56]} 19. Rc4 {[%clk 0:01:52]}  e5 {[%clk 0:00:32]} 20. Nxe5 {[%clk 0:01:49]}  Qe7 {[%clk 0:00:33]} 21. Nf3 {[%clk 0:01:35]}  Be6 {[%clk 0:00:31]} 22. Rc1 {[%clk 0:01:31]}  Rxb4 {[%clk 0:00:31]} 23. Qa3 {[%clk 0:01:31]}  c5 {[%clk 0:00:28]} 24. h3 {[%clk 0:01:22]}  b6 {[%clk 0:00:24]} 25. Kg1 {[%clk 0:01:21]}  Qb7 {[%clk 0:00:23]} 26. Rc2 {[%clk 0:01:16]}  Ra8 {[%clk 0:00:23]} 27. Qc1 {[%clk 0:01:16]}  Qa6 {[%clk 0:00:19]} 28. Ne5 {[%clk 0:01:10]}  Bxa2 {[%clk 0:00:17]} 29. Kh2 {[%clk 0:01:10]}  Be6 {[%clk 0:00:15]} 30. f4 {[%clk 0:01:10]}  Qa3 {[%clk 0:00:13]} 31. f5 {[%clk 0:01:05]}  Qxc1 {[%clk 0:00:12]} 32. Rhxc1 {[%clk 0:01:06]}  Bb3 {[%clk 0:00:12]} 33. Rb2 {[%clk 0:01:05]}  Ba4 {[%clk 0:00:05]} 34. Rxb4 {[%clk 0:00:49]}  cxb4 {[%clk 0:00:06]} 35. Rc4 {[%clk 0:00:49]}  b3 {[%clk 0:00:04]} 36. Rxd4 {[%clk 0:00:49]}  b5 {[%clk 0:00:03]} 37. Rb4 {[%clk 0:00:47]}  Rc8 {[%clk 0:00:04]} 38. g4 {[%clk 0:00:40]}  Rc2 {[%clk 0:00:04]} 39. Kg3 {[%clk 0:00:38]}  h6 {[%clk 0:00:03]} 40. Bf3 {[%clk 0:00:38]}  b2 {[%clk 0:00:03]} 41. h4 {[%clk 0:00:28]}  Rd2 {[%clk 0:00:01]} 42. g5 {[%clk 0:00:21]}  hxg5 {[%clk 0:00:02]} 43. hxg5 {[%clk 0:00:22]}  Ne8 {[%clk 0:00:03]} 44. Kf4 {[%clk 0:00:19]}  Nd6 {[%clk 0:00:03]} 45. Ke3 {[%clk 0:00:18]}  Rh2 {[%clk 0:00:03]} 46. Be2 {[%clk 0:00:18]}  Rh1 {[%clk 0:00:02]} 47. Rxb2 {[%clk 0:00:17]}  f6 {[%clk 0:00:02]} 48. gxf6 {[%clk 0:00:11]}  gxf6 {[%clk 0:00:03]} 49. Nd7 {[%clk 0:00:10]}  Kf7 {[%clk 0:00:04]} 50. Nc5 {[%clk 0:00:09]}  Rh3+ {[%clk 0:00:05]} 51. Bf3 {[%clk 0:00:08]}  Rh2 {[%clk 0:00:06]} 52. Rxh2 {[%clk 0:00:08]}  Nxf5+ {[%clk 0:00:06]} 53. exf5 {[%clk 0:00:08]} 1-0


[Site "https://www.chess.com"]

[Event "Titled Tuesday Blitz November 2 2021"]
[White "Terry, Renato"]
[Black "Holt, Conrad"]
[WhiteFideId "3803457"]
[BlackFideId "2034387"]
[WhiteElo "2577"]
[BlackElo "2586"]
[Result "1-0"]
[Round "09"]
[TimeControl "180+1"]
[Date "2021.11.02"]
[WhiteClock "0:00:03"]
[BlackClock "0:00:03"]

1. d4 {[%clk 0:03:00]}  d5 {[%clk 0:02:59]} 2. Bg5 {[%clk 0:03:01]}  h6 {[%clk 0:02:58]} 3. Bh4 {[%clk 0:03:01]}  c6 {[%clk 0:02:58]} 4. e3 {[%clk 0:02:59]}  Qb6 {[%clk 0:02:57]} 5. b3 {[%clk 0:03:00]}  e5 {[%clk 0:02:56]} 6. Nf3 {[%clk 0:03:00]}  Nd7 {[%clk 0:02:51]} 7. Be2 {[%clk 0:02:56]}  Ne7 {[%clk 0:02:45]} 8. Bg3 {[%clk 0:02:49]}  e4 {[%clk 0:02:39]} 9. Ne5 {[%clk 0:02:40]}  Nf5 {[%clk 0:02:35]} 10. Nxd7 {[%clk 0:02:40]}  Bxd7 {[%clk 0:02:19]} 11. Be5 {[%clk 0:02:41]}  Qd8 {[%clk 0:02:03]} 12. Bg4 {[%clk 0:02:35]}  Qg5 {[%clk 0:02:00]} 13. g3 {[%clk 0:01:50]}  Qd8 {[%clk 0:01:47]} 14. h4 {[%clk 0:01:39]}  f6 {[%clk 0:01:25]} 15. Bf4 {[%clk 0:01:30]}  g5 {[%clk 0:01:07]} 16. hxg5 {[%clk 0:01:30]}  fxg5 {[%clk 0:01:04]} 17. Be5 {[%clk 0:01:26]}  Rg8 {[%clk 0:00:52]} 18. Bh5+ {[%clk 0:01:27]}  Ke7 {[%clk 0:00:52]} 19. c4 {[%clk 0:01:20]}  Qa5+ {[%clk 0:00:48]} 20. Qd2 {[%clk 0:01:07]}  Qxd2+ {[%clk 0:00:47]} 21. Kxd2 {[%clk 0:01:08]}  Bg7 {[%clk 0:00:46]} 22. cxd5 {[%clk 0:00:59]}  Bxe5 {[%clk 0:00:39]} 23. dxe5 {[%clk 0:01:00]}  cxd5 {[%clk 0:00:38]} 24. Nc3 {[%clk 0:01:01]}  Ke6 {[%clk 0:00:35]} 25. Bg4 {[%clk 0:00:59]}  Kxe5 {[%clk 0:00:34]} 26. Bxf5 {[%clk 0:00:56]}  Bxf5 {[%clk 0:00:34]} 27. Rxh6 {[%clk 0:00:57]}  Raf8 {[%clk 0:00:30]} 28. Rah1 {[%clk 0:00:44]}  Bg6 {[%clk 0:00:30]} 29. R1h2 {[%clk 0:00:40]}  d4 {[%clk 0:00:29]} 30. exd4+ {[%clk 0:00:41]}  Kxd4 {[%clk 0:00:29]} 31. Nd1 {[%clk 0:00:24]}  Rf6 {[%clk 0:00:18]} 32. Ne3 {[%clk 0:00:24]}  Ra6 {[%clk 0:00:16]} 33. a4 {[%clk 0:00:24]}  Rb6 {[%clk 0:00:14]} 34. Nc2+ {[%clk 0:00:22]}  Ke5 {[%clk 0:00:13]} 35. Kc3 {[%clk 0:00:15]}  Rf8 {[%clk 0:00:13]} 36. Ne3 {[%clk 0:00:14]}  Rf3 {[%clk 0:00:11]} 37. b4 {[%clk 0:00:06]}  Rc6+ {[%clk 0:00:11]} 38. Kd2 {[%clk 0:00:06]}  Kd4 {[%clk 0:00:09]} 39. b5 {[%clk 0:00:04]}  Rcf6 {[%clk 0:00:08]} 40. Ke2 {[%clk 0:00:03]}  Kc5 {[%clk 0:00:08]} 41. Ng4 {[%clk 0:00:03]}  Re6 {[%clk 0:00:03]} 42. Ne3 {[%clk 0:00:04]}  Kb4 {[%clk 0:00:03]} 43. Rh8 {[%clk 0:00:04]}  Kxa4 {[%clk 0:00:04]} 44. Ra8 {[%clk 0:00:03]}  Kxb5 {[%clk 0:00:04]} 45. Rxa7 {[%clk 0:00:04]}  Kb6 {[%clk 0:00:04]} 46. Ra2 {[%clk 0:00:03]}  Rc6 {[%clk 0:00:04]} 47. Rb2+ {[%clk 0:00:04]}  Kc7 {[%clk 0:00:05]} 48. Rh8 {[%clk 0:00:04]}  Bf7 {[%clk 0:00:04]} 49. Rh7 {[%clk 0:00:04]}  Rd6 {[%clk 0:00:03]} 50. Nc4 {[%clk 0:00:03]}  Rd7 {[%clk 0:00:03]} 51. Rc2 {[%clk 0:00:01]}  Bxc4+ {[%clk 0:00:03]} 52. Rxc4+ {[%clk 0:00:02]}  Kd8 {[%clk 0:00:03]} 53. Rh8+ {[%clk 0:00:02]}  Ke7 {[%clk 0:00:03]} 54. Rxe4+ {[%clk 0:00:03]}  Kd6 {[%clk 0:00:03]} 55. Kxf3 {[%clk 0:00:03]} 1-0


[Site "https://www.chess.com"]